bitfinex-derivatives/quotes_BNBF0:USTF0_20250907
["timestamp","ask_amount","ask_price","bid_price","bid_amount"]
[1757258318340,1.0267599,871.12,870.2,2.833]
[1757258319440,1.0267599,871.14,870.2,2.833]
[1757258320439,1.0267599,871.17,870.2,2.833]
[1757258320638,1.0267599,871.16,870.2,2.833]
[1757258320841,1.0267599,871.17,870.2,2.833]
[1757258321438,1.0267599,871.16,870.2,2.833]
[1757258322946,1.0267599,871.15,870.2,2.833]
[1757258323940,1.0267599,871.18,870.2,2.833]
[1757258326346,1.0267599,871.17,870.2,2.833]
[1757258327248,1.0267599,871.21,870.22,0.77111681]
[1757258328346,1.0267599,871.2,870.22,0.77111681]
[1757258329050,1.0267599,871.42,870.26,0.77111681]
[1757258329253,1.0267599,871.43,870.27,0.77111681]
[1757258329552,1.0267599,871.42,870.28,0.77111681]
[1757258330453,1.0267599,871.41,870.28,0.77111681]
[1757258331247,1.0267599,871.42,870.28,0.77111681]
[1757258331451,1.0267599,871.41,870.28,0.77111681]
[1757258332355,1.0267599,871.41,870.29,0.77111681]
[1757258332958,1.0267599,871.4,870.28,0.77111681]
[1757258333357,1.0267599,871.39,870.29,1.558]
[1757258333856,1.0267599,871.39,870.29,2.32911681]
[1757258334452,1.0267599,871.38,870.29,2.32911681]
[1757258334954,1.0267599,871.38,870.3,1.668]
[1757258335357,1.0267599,871.37,870.3,2.43911681]
[1757258336157,1.0267599,871.41,870.3,1.668]
[1757258336358,1.0267599,871.4,870.3,1.668]
[1757258337157,1.0267599,871.41,870.3,1.668]
[1757258337355,1.0267599,871.35,870.3,1.668]
[1757258338353,1.0267599,871.34,870.3,1.668]
[1757258338953,1.0267599,871.28,870.3,1.668]
[1757258339354,1.0267599,871.27,870.3,2.43911681]
[1757258341358,1.0267599,871.25,870.32,0.77111681]
[1757258343559,1.0267599,871.23,870.3,2.43911681]
[1757258344064,1.0267599,871.23,870.31,0.77111681]
[1757258345659,1.0267599,871.23,870.32,0.77111681]
[1757258345863,1.0267599,871.24,870.32,0.77111681]
[1757258346059,1.0267599,871.21,870.33,0.77111681]
[1757258347262,1.0267599,871.21,870.34,0.77111681]
[1757258348163,1.0267599,871.21,870.35,1.348]
[1757258348463,1.0267599,871.29,870.35,1.348]
[1757258352665,1.0267599,871.29,870.36,1.207]
[1757258353970,1.0267599,871.28,870.36,1.207]
[1757258354270,1.0267599,871.31,870.36,1.207]
[1757258354770,1.0267599,871.32,870.36,1.97811681]
[1757258355066,1.0267599,871.33,870.36,1.97811681]
[1757258355769,1.0267599,871.25,870.39,0.77111681]
[1757258355973,1.0267599,871.32,870.46,0.77111681]
[1757258356269,1.0267599,871.34,870.47,0.77111681]
[1757258357071,1.0267599,871.34,870.46,0.77111681]
[1757258357968,1.0267599,871.35,870.47,0.77111681]
[1757258358173,1.0267599,871.36,870.46,0.77111681]
[1757258358369,1.5216007,871.55,870.36,1.207]
[1757258358370,1.0267599,871.37,870.45,0.77111681]
[1757258359176,1.0267599,871.38,870.45,0.77111681]
[1757258361173,1.0267599,871.39,870.44,0.77111681]
[1757258362378,1.0267599,871.39,870.44,0.76964422]
[1757258362871,1.0267599,871.39,870.46,0.76964422]
[1757258363075,1.0267599,871.36,870.46,0.76964422]
[1757258363273,1.0267599,871.37,870.46,0.76964422]
[1757258364179,1.0267599,871.37,870.45,1.86964422]
[1757258365174,1.0267599,871.38,870.45,1.86964422]
[1757258365681,1.0267599,871.35,870.46,0.76964422]
[1757258365984,1.0267599,871.44,870.45,1.1]
[1757258366280,1.0267599,871.46,870.45,1.1]
[1757258366479,1.0267599,871.49,870.45,1.86964422]
[1757258367287,1.0267599,871.49,870.45,1.1]
[1757258367585,1.0267599,871.53,870.48,0.76964422]
[1757258368085,1.0267599,871.52,870.48,0.76964422]
[1757258371185,1.0267599,871.53,870.48,0.76964422]
[1757258371390,1.0267599,871.53,870.49,1.621]
[1757258372691,1.0267599,871.53,870.5,1.235]
[1757258373494,1.0267599,871.58,870.5,1.235]
[1757258374691,1.0267599,871.67,870.5,1.235]
[1757258374896,1.0267599,871.69,870.5,1.235]
[1757258375292,1.0267599,871.71,870.5,1.235]
[1757258376096,1.0267599,871.69,870.5,1.235]
[1757258377497,1.0267599,871.65,870.5,1.235]
[1757258378898,1.0267599,871.65,870.51,1.293]
[1757258379198,1.0267599,871.64,870.51,1.293]
[1757258379395,1.0267599,871.67,870.51,1.293]
[1757258380596,1.0267599,871.68,870.51,1.293]
[1757258383197,1.0267599,871.7,870.51,1.293]
[1757258383401,1.0267599,871.77,870.52,0.76964422]
[1757258384098,1.0267599,871.78,870.52,0.76964422]
[1757258384597,1.0267599,871.78,870.51,2.06264422]
[1757258385801,1.0267599,871.8,870.52,0.76964422]
[1757258387504,1.0267599,871.83,870.51,1.293]
[1757258388805,1.0267599,871.84,870.51,1.293]
[1757258389206,1.0267599,871.85,870.51,1.293]
[1757258393206,1.0267599,871.74,870.53,0.76964422]
[1757258393910,1.0267599,871.74,870.54,0.76964422]
[1757258394208,1.5216007,871.96,870.51,1.293]
[1757258394209,1.0267599,871.76,870.55,0.76964422]
[1757258395210,1.0267599,871.76,870.51,1.293]
[1757258395211,1.0267599,871.76,870.54,0.76964422]
[1757258395507,1.0267599,871.75,870.55,0.76964422]
[1757258397213,1.0267599,871.68,870.58,0.76964422]
[1757258397612,1.0267599,871.67,870.58,0.76964422]
[1757258398613,1.0267599,871.63,870.6,0.76964422]
[1757258399915,1.0267599,871.61,870.61,0.76964422]
[1757258401519,1.0267599,871.6,870.61,0.76964422]
[1757258401819,1.0267599,871.61,870.61,0.76964422]
[1757258402719,1.0267599,871.62,870.6,0.76964422]
[1757258403019,1.0267599,871.63,870.62,1.13]
[1757258403919,0.004,872.5,870.62,1.89964422]
[1757258403920,1.0267599,871.61,870.62,1.89964422]
[1757258405020,1.0267599,871.6,870.62,1.89964422]
[1757258405320,1.0267599,871.6,870.63,0.76964422]
[1757258405615,1.0267599,871.61,870.62,1.89964422]
[1757258406618,1.0267599,871.6,870.63,0.76964422]
[1757258406915,1.0267599,871.6,870.62,1.89964422]
[1757258407119,1.0267599,871.6,870.63,0.76964422]
[1757258408020,1.0267599,871.6,870.62,1.89964422]
[1757258408319,1.0267599,871.6,870.63,0.76964422]
[1757258408521,1.0267599,871.62,870.62,1.89964422]
[1757258408822,1.0267599,871.63,870.63,0.76964422]
[1757258409121,1.0267599,871.63,870.64,0.76964422]
[1757258409518,1.0267599,871.63,870.63,0.76964422]
[1757258410216,1.0267599,871.63,870.64,0.76964422]
[1757258411121,1.0267599,871.62,870.64,0.76964422]
[1757258411322,1.0267599,871.63,870.64,0.76964422]
[1757258411617,1.0267599,871.62,870.64,0.76964422]
[1757258412218,1.0267599,871.62,870.65,0.76964422]
[1757258413120,1.0267599,871.62,870.62,1.13]
[1757258413121,1.0267599,871.61,870.66,0.76964422]
[1757258414222,1.0267599,871.6,870.66,0.76964422]
[1757258415124,1.0267599,871.59,870.67,0.76964422]
[1757258415325,1.0267599,871.6,870.67,0.76964422]
[1757258415621,1.0267599,871.58,870.65,0.76964422]
[1757258416225,1.0267599,871.58,870.66,0.76964422]
[1757258416527,1.0267599,871.57,870.66,0.76964422]
[1757258416727,1.0267599,871.56,870.66,0.76964422]
[1757258417123,1.0267599,871.55,870.67,0.76964422]
[1757258417427,1.0267599,871.59,870.7,0.76964422]
[1757258418228,1.0267599,871.61,870.7,0.76964422]
[1757258418532,1.0267599,871.59,870.7,0.76964422]
[1757258419229,1.0267599,871.59,870.71,0.76964422]
[1757258419928,1.0267599,871.94,870.62,1.13]
[1757258420228,1.0267599,871.81,870.62,1.13]
[1757258420429,1.0267599,871.82,870.62,1.13]
[1757258420730,1.0267599,871.81,870.62,1.13]
[1757258422231,1.0267599,871.64,870.62,1.13]
[1757258422430,1.0267599,871.65,870.62,1.13]
[1757258423428,1.0267599,871.61,870.62,1.13]
[1757258423630,1.0267599,871.6,870.62,1.13]
[1757258425126,1.0267599,871.59,870.62,1.13]
[1757258425832,1.0267599,871.6,870.62,1.13]
[1757258426131,1.0267599,871.61,870.62,1.13]
[1757258427332,1.0267599,871.57,870.62,1.13]
[1757258428529,1.0267599,871.55,870.62,1.13]
[1757258428730,1.0267599,871.52,870.62,1.13]
[1757258430028,1.0267599,871.47,870.62,1.13]
[1757258430227,1.0267599,871.46,870.62,1.13]
[1757258431033,1.0267599,871.45,870.5,2.00464422]
[1757258431227,1.0267599,871.46,870.5,2.00464422]
[1757258431933,1.0267599,871.46,870.51,0.76964422]
[1757258432133,1.0267599,871.47,870.52,0.76964422]
[1757258434035,1.0267599,871.47,870.53,1.556]
[1757258434432,1.0267599,871.48,870.56,0.76964422]
[1757258434831,1.0267599,871.48,870.57,0.76964422]
[1757258435333,1.0267599,871.49,870.56,0.76964422]
[1757258437237,1.0267599,871.5,870.56,0.76964422]
[1757258437438,1.0267599,871.47,870.57,0.76964422]
[1757258439037,1.0267599,871.47,870.58,0.76964422]
[1757258440340,1.0267599,871.46,870.58,0.76964422]
[1757258442941,1.0267599,871.45,870.58,0.76964422]
[1757258443538,1.0267599,871.45,870.53,1.556]
[1757258443539,1.0267599,871.45,870.59,0.76964422]
[1757258443837,1.5216007,871.62,870.53,1.556]
[1757258443838,1.0267599,871.46,870.58,0.76964422]
[1757258444037,1.0267599,871.45,870.58,0.76964422]
[1757258444643,1.0267599,871.47,870.58,0.76964422]
[1757258444843,1.0267599,871.49,870.57,0.76964422]
[1757258445044,1.0267599,871.48,870.57,0.76964422]
[1757258447455,1.0267599,871.47,870.57,0.76964422]
[1757258449157,1.0267599,871.49,870.57,0.76964422]
[1757258449354,1.0267599,871.49,870.58,1.476]
[1757258449658,1.0267599,871.47,870.58,1.476]
[1757258449854,1.0267599,871.47,870.58,2.24564422]
[1757258450157,1.0267599,871.47,870.58,1.476]
[1757258450454,1.0267599,871.47,870.58,2.24564422]
[1757258451157,1.0267599,871.47,870.58,1.476]
[1757258451558,1.0267599,871.48,870.58,1.476]
[1757258451954,1.0267599,871.54,870.58,1.476]
[1757258453557,1.0267599,871.8,870.58,1.476]
[1757258454455,1.0267599,871.81,870.58,1.476]
[1757258456359,1.0267599,871.8,870.58,1.476]
[1757258456557,1.0267599,871.81,870.58,1.476]
[1757258457465,1.0267599,871.85,870.58,2.24564422]
[1757258459363,1.0267599,871.83,870.59,0.76964422]
[1757258459765,1.0267599,871.83,870.58,2.24564422]
[1757258461765,1.0267599,871.78,870.6,0.76964422]
[1757258462266,1.0267599,871.78,870.61,0.76964422]
[1757258462561,1.0267599,871.65,870.66,0.76933462]
[1757258463164,1.0267599,871.63,870.67,0.76933462]
[1757258463867,1.0267599,871.63,870.68,1.687]
[1757258464372,1.0267599,871.61,870.68,2.45633462]
[1757258465674,1.0267599,871.6,870.68,2.45633462]
[1757258466067,1.0267599,871.58,870.68,1.687]
[1757258466269,1.0267599,871.5,870.68,1.687]
[1757258466474,1.0267599,871.47,870.68,1.687]
[1757258466768,1.0267599,871.46,870.68,1.687]
[1757258467470,1.0267599,871.42,870.68,1.687]
[1757258467873,1.0267599,871.39,870.68,1.687]
[1757258472177,1.0267599,871.37,870.68,1.687]
[1757258473176,1.0267599,871.36,870.68,1.687]
[1757258473476,1.0267599,871.37,870.68,1.687]
[1757258474379,1.0267599,871.36,870.68,1.687]
[1757258477374,1.0267599,871.35,870.69,1.386]
[1757258478382,1.0267599,871.34,870.69,1.386]
[1757258478880,1.0267599,871.35,870.69,1.386]
[1757258479381,1.0267599,871.34,870.69,1.386]
[1757258480383,1.0267599,871.37,870.7,1.505]
[1757258482978,1.0267599,871.35,870.7,1.505]
[1757258483383,1.0267599,871.36,870.7,1.505]
[1757258484082,1.0267599,871.35,870.7,1.505]
[1757258484484,1.0267599,871.36,870.7,1.505]
[1757258484679,1.0267599,871.32,870.7,1.505]
[1757258484983,1.0267599,871.25,870.7,1.505]
[1757258485184,1.0267599,871.26,870.71,1.378]
[1757258486679,1.0267599,871.25,870.71,1.378]
[1757258487280,1.0267599,871.26,870.71,1.378]
[1757258487980,1.0267599,871.27,870.71,1.378]
[1757258488283,1.0267599,871.28,870.71,1.378]
[1757258491183,1.0267599,871.29,870.71,1.378]
[1757258491489,1.0267599,871.26,870.71,1.378]
[1757258492186,1.0267599,871.27,870.71,1.378]
[1757258493290,1.0267599,871.26,870.71,1.378]
[1757258494289,1.0267599,871.28,870.71,1.378]
[1757258494595,1.0267599,871.27,870.71,1.378]
[1757258495092,1.0267599,871.26,870.71,1.378]
[1757258495894,1.0267599,871.26,870.72,1.391]
[1757258496089,1.0267599,871.27,870.72,1.391]
[1757258497693,1.0267599,871.28,870.72,1.391]
[1757258497889,1.0267599,871.27,870.72,1.391]
[1757258499493,1.0267599,871.28,870.72,1.391]
[1757258500094,1.0267599,871.33,870.72,1.391]
[1757258501897,1.0267599,871.32,870.72,1.391]
[1757258502191,1.0267599,871.33,870.72,1.391]
[1757258502694,1.0267599,871.33,870.73,1.468]
[1757258505898,1.0267599,871.34,870.73,1.468]
[1757258507497,2.5709662,872.25,870.73,1.468]
[1757258507498,1.0267599,871.37,870.73,1.468]
[1757258509298,1.0267599,871.36,870.73,1.468]
[1757258509599,1.0267599,871.32,870.73,1.468]
[1757258510093,1.0267599,871.4,870.73,1.468]
[1757258516203,1.0267599,871.39,870.73,1.468]
[1757258516803,1.0267599,871.4,870.73,1.468]
[1757258517503,1.0267599,871.36,870.73,1.468]
[1757258519206,1.0267599,871.35,870.73,1.468]
[1757258519503,1.0267599,871.38,870.73,1.468]
[1757258520008,1.0267599,871.34,870.73,1.468]
[1757258520405,1.0267599,871.34,870.74,1.449]
[1757258521308,1.0267599,871.33,870.74,1.449]
[1757258521512,1.0267599,871.34,870.74,1.449]
[1757258523012,1.0267599,871.33,870.74,1.449]
[1757258523712,1.0267599,871.33,870.75,1.565]
[1757258524212,1.0267599,871.32,870.75,1.565]
[1757258525309,1.0267599,871.31,870.75,1.565]
[1757258526315,1.0267599,871.3,870.75,1.565]
[1757258526516,1.0267599,871.33,870.75,1.565]
[1757258527218,1.0267599,871.32,870.75,1.565]
[1757258527418,1.0267599,871.33,870.75,1.565]
[1757258528214,1.0267599,871.32,870.75,1.565]
[1757258529115,1.0267599,871.29,870.75,1.565]
[1757258529619,1.0267599,871.3,870.75,1.565]
[1757258530217,1.0267599,871.29,870.75,1.565]
[1757258530521,1.0267599,871.32,870.75,1.565]
[1757258531117,1.0267599,871.33,870.75,1.565]
[1757258531617,1.0267599,871.32,870.75,1.565]
[1757258532518,1.0267599,871.31,870.75,1.565]
[1757258533921,1.0267599,871.33,870.75,1.565]
[1757258534918,1.0267599,871.32,870.75,1.565]
[1757258535117,1.0267599,871.32,870.76,1.631]
[1757258535822,1.0267599,871.3,870.76,1.631]
[1757258536421,1.0267599,871.29,870.76,1.631]
[1757258537418,1.0267599,871.28,870.76,1.631]
[1757258537819,1.0267599,871.25,870.76,1.631]
[1757258538121,1.0267599,871.24,870.76,1.631]
[1757258538620,1.0267599,871.22,870.76,1.631]
[1757258539918,1.0267599,871.21,870.76,1.631]
[1757258540822,1.0267599,871.19,870.76,1.631]
[1757258549729,1.0267599,871.27,870.76,1.631]
[1757258553232,1.0267599,871.26,870.76,1.631]
[1757258554735,1.0267599,871.28,870.76,1.631]
[1757258557430,1.0267599,871.25,870.76,1.631]
[1757258559732,0.004,872.5,870.76,1.631]
[1757258559733,1.0267599,871.19,870.76,1.631]
[1757258562135,1.0267599,871.19,870.75,3.023]
[1757258564939,1.0267599,871.19,870.76,1.346]
[1757258570238,1.0267599,871.35,870.76,1.346]
[1757258572744,1.0267599,871.35,870.77,1.683]
[1757258575248,1.0267599,871.34,870.77,1.683]
[1757258580046,1.0267599,871.2,870.77,1.683]
[1757258581446,1.0267599,871.19,870.77,1.683]
[1757258583352,1.0267599,871.21,870.77,1.683]
[1757258588057,1.0267599,871.22,870.77,1.683]
[1757258588854,1.0267599,871.23,870.77,1.683]
[1757258590357,1.0267599,871.22,870.77,1.683]
[1757258591260,1.0267599,871.19,870.77,1.683]
[1757258597666,1.0267599,871.21,870.77,1.683]
[1757258597869,1.0267599,871.21,870.78,1.092]
[1757258598366,1.0267599,871.22,870.78,1.092]
[1757258602575,1.0267599,871.24,870.78,1.092]
[1757258604472,1.0267599,871.2,870.78,1.092]
[1757258606378,1.0267599,871.21,870.78,1.092]
[1757258607578,1.0267599,871.19,870.78,1.092]
[1757258623388,1.0267599,871.2,870.78,1.092]
[1757258624494,1.0267599,871.19,870.78,1.092]
[1757258624893,1.0267599,871.19,870.66,3.92]
[1757258625393,1.0267599,871.51,870.66,3.92]
[1757258626391,1.0267599,871.53,870.66,3.92]
[1757258627490,1.0267599,871.49,870.66,3.92]
[1757258627792,1.0267599,871.4,870.67,1.128]
[1757258628191,1.0267599,871.3,870.67,1.128]
[1757258628393,1.0267599,871.35,870.67,1.128]
[1757258630401,1.0267599,871.36,870.67,1.128]
[1757258630997,1.0267599,871.37,870.67,1.128]
[1757258632298,1.0267599,871.38,870.68,1.198]
[1757258633303,1.0267599,871.39,870.68,1.198]
[1757258633504,1.0267599,871.38,870.68,1.198]
[1757258634304,1.0267599,871.39,870.68,1.198]
[1757258635200,1.5216007,871.56,870.68,1.198]
[1757258635201,1.0267599,871.4,870.68,1.198]
[1757258635400,1.0267599,871.41,870.68,1.198]
[1757258636504,1.0267599,871.42,870.68,1.198]
[1757258637905,1.0267599,871.42,870.69,1.698]
[1757258638202,1.0267599,871.43,870.69,1.698]
[1757258641608,1.0267599,871.44,870.69,1.698]
[1757258642506,1.0267599,871.45,870.69,1.698]
[1757258642910,1.0267599,871.44,870.69,1.698]
[1757258643405,1.0267599,871.43,870.69,1.698]
[1757258643608,1.0267599,871.44,870.69,1.698]
[1757258644006,1.0267599,871.45,870.69,1.698]
[1757258644406,1.0267599,871.47,870.69,1.698]
[1757258646314,1.0267599,871.48,870.69,1.698]
[1757258647114,1.0267599,871.47,870.69,1.698]
[1757258647614,1.0267599,871.51,870.69,1.698]
[1757258649617,1.5216007,871.7,870.69,1.698]
[1757258649618,1.0267599,871.52,870.69,1.698]
[1757258650817,1.0267599,871.51,870.69,1.698]
[1757258651017,1.0267599,871.51,870.68,1.198]
[1757258651517,1.0267599,871.51,870.66,1.438]
[1757258651714,1.0267599,871.52,870.66,1.438]
[1757258652018,1.0267599,871.52,870.67,1.317]
[1757258653616,1.0267599,871.53,870.68,1.632]
[1757258655517,1.0267599,871.53,870.69,1.161]
[1757258656421,1.0267599,871.52,870.69,1.161]
[1757258657523,1.0267599,871.49,870.69,1.161]
[1757258658424,1.0267599,871.54,870.69,1.161]
[1757258659420,1.0267599,871.52,870.69,1.161]
[1757258660621,1.0267599,871.52,870.7,1.166]
[1757258662222,1.0267599,871.51,870.7,1.166]
[1757258662624,1.0267599,871.53,870.7,1.166]
[1757258664725,1.0267599,871.54,870.7,1.166]
[1757258665224,1.0267599,871.53,870.7,1.166]
[1757258666622,1.0267599,871.48,870.7,1.166]
[1757258669227,1.0267599,871.47,870.7,1.166]
[1757258669727,0.004,872.5,870.7,1.166]
[1757258669728,1.0267599,871.55,870.7,1.166]
[1757258670629,1.0267599,871.53,870.7,1.166]
[1757258673226,1.0267599,871.84,870.7,1.166]
[1757258673426,1.0267599,872.12,870.7,1.166]
[1757258673629,1.0267599,872.11,870.7,1.166]
[1757258674329,1.0267599,872.11,870.7,1.93833684]
[1757258674527,1.0267599,872.12,870.7,1.166]
[1757258675227,1.0267599,872.11,870.7,1.166]
[1757258675426,1.0267599,872.12,870.7,1.166]
[1757258675630,1.0267599,872.13,870.7,1.166]
[1757258675832,1.0267599,872.14,870.7,1.166]
[1757258676032,1.0267599,872.15,870.7,1.93833684]
[1757258676432,1.0267599,872.16,870.7,1.166]
[1757258676631,1.0267599,872.15,870.7,1.166]
[1757258677433,1.0267599,872.16,870.7,1.166]
[1757258677634,1.0267599,872.13,870.7,1.166]
[1757258678531,1.0267599,872.14,870.71,1.358]
[1757258678832,1.0267599,872.07,870.71,2.13033684]
[1757258679430,1.0267599,872.08,870.71,1.358]
[1757258679634,1.0267599,872.21,870.82,0.77233684]
[1757258680631,1.0267599,872.22,870.81,0.77233684]
[1757258681334,1.0267599,872.23,870.8,0.77233684]
[1757258682532,1.0267599,872.25,870.78,0.77233684]
[1757258682832,1.0267599,872.22,870.8,0.77233684]
[1757258683332,1.0267599,872.23,870.79,0.77233684]
[1757258683631,1.0267599,872.23,870.71,1.358]
[1757258683632,1.0267599,872.23,870.78,0.77233684]
[1757258684436,1.0267599,872.24,870.78,0.77233684]
[1757258685432,1.0267599,872.25,870.77,0.77233684]
[1757258686034,0.004,872.5,870.77,0.77233684]
[1757258686035,1.0267599,872.23,870.77,0.77233684]
[1757258686334,1.0267599,872.24,870.76,0.77233684]
[1757258686834,1.0267599,872.25,870.77,0.77233684]
[1757258687338,1.0267599,872.24,870.77,0.77233684]
[1757258687538,1.0267599,872.27,870.8,0.77233684]
[1757258687737,1.0267599,872.23,870.82,0.77233684]
[1757258688436,1.0267599,872.24,870.81,0.77233684]
[1757258688640,1.0267599,872.23,870.81,0.77233684]
[1757258689537,1.0267599,872.1,870.86,0.77233684]
[1757258689840,1.0267599,872.11,870.86,0.77233684]
[1757258690439,1.0267599,872.12,870.85,0.77233684]
[1757258691342,1.0267599,872.13,870.84,0.77233684]
[1757258691537,1.0267599,872.12,870.84,0.77233684]
[1757258691741,1.0267599,872.13,870.84,0.77233684]
[1757258691942,1.0267599,872.12,870.84,0.77233684]
[1757258692345,1.0267599,872.14,870.84,0.77233684]
[1757258692847,1.0267599,872.34,870.77,0.77233684]
[1757258693545,1.0267599,872.35,870.76,0.77233684]
[1757258694444,1.0267599,872.36,870.76,0.77233684]
[1757258694645,1.0267599,872.37,870.76,0.77233684]
[1757258695544,1.0267599,872.38,870.76,0.77233684]
[1757258696446,1.0267599,872.39,870.75,0.77233684]
[1757258697750,1.0267599,872.36,870.76,1.56]
[1757258698147,1.0267599,872.37,870.76,1.56]
[1757258699053,1.0267599,872.21,870.78,0.77233684]
[1757258699450,1.0267599,872.21,870.77,0.77233684]
[1757258700149,1.0267599,872.21,870.78,0.77233684]
[1757258700652,1.0267599,872.2,870.78,0.77233684]
[1757258700850,1.0267599,872.21,870.79,0.77233684]
[1757258701856,1.0267599,872.19,870.79,0.77233684]
[1757258702451,1.0267599,872.16,870.8,0.77233684]
[1757258702652,1.0267599,872.17,870.81,0.77233684]
[1757258703557,1.0267599,872.18,870.81,0.77233684]
[1757258703856,1.0267599,872.19,870.83,0.77233684]
[1757258704755,1.0267599,872.18,870.83,0.77233684]
[1757258705257,1.0267599,872.19,870.83,0.77233684]
[1757258705754,1.0267599,872.2,870.83,0.77233684]
[1757258705952,1.0267599,872.21,870.84,0.77233684]
[1757258706256,1.0267599,872.21,870.83,0.77233684]
[1757258706462,1.0267599,872.2,870.84,0.77233684]
[1757258706756,1.0267599,872.21,870.83,0.77233684]
[1757258707056,1.0267599,872.21,870.84,0.77233684]
[1757258707259,1.0267599,872.22,870.84,0.77233684]
[1757258707556,1.0267599,872.21,870.85,0.77233684]
[1757258707859,1.0267599,872.22,870.85,0.77233684]
[1757258708160,1.0267599,872.22,870.84,0.77233684]
[1757258708460,1.0267599,872.24,870.84,0.77233684]
[1757258708656,1.0267599,872.25,870.83,0.77233684]
[1757258711261,1.0267599,872.26,870.83,0.77233684]
[1757258711461,1.0267599,872.25,870.83,0.77233684]
[1757258712963,1.0267599,872.26,870.83,0.77233684]
[1757258713562,1.0267599,872.25,870.83,0.77233684]
[1757258713765,1.0267599,872.26,870.83,0.77233684]
[1757258714065,1.0267599,872.26,870.76,1.56]
[1757258714066,1.0267599,872.25,870.84,0.77233684]
[1757258715370,1.0267599,872.24,870.84,0.77233684]
[1757258715767,1.0267599,872.22,870.85,0.77233684]
[1757258716171,1.0267599,872.21,870.86,0.77233684]
[1757258717169,0.004,872.5,870.76,1.56]
[1757258717472,0.004,872.5,871.02,0.77233684]
[1757258717770,0.004,872.5,871.03,0.77233684]
[1757258718172,0.004,872.5,871.02,0.77233684]
[1757258718374,0.004,872.5,871.01,0.77233684]
[1757258718573,0.004,872.5,871.03,0.77233684]
[1757258719273,0.004,872.5,871.02,0.77233684]
[1757258719774,0.004,872.5,871.03,0.77233684]
[1757258719973,0.004,872.5,871.04,0.77233684]
[1757258720674,0.004,872.5,871.03,0.77233684]
[1757258721069,1.0267599,872.42,870.99,0.77233684]
[1757258721271,1.0267599,872.29,870.99,0.77233684]
[1757258721470,1.0267599,872.28,871.0,0.77233684]
[1757258723478,0.004,872.5,870.67,1.5414546]
[1757258723479,1.0267599,872.27,871.01,0.77233684]
[1757258723678,1.0267599,872.28,871.01,0.77233684]
[1757258724378,1.0267599,872.27,871.01,0.77233684]
[1757258724679,1.0267599,872.29,871.01,0.77233684]
[1757258725079,1.0267599,872.28,871.01,0.77233684]
[1757258725479,1.0267599,872.27,871.02,0.77233684]
[1757258725676,1.0267599,872.28,871.02,0.77233684]
[1757258726379,1.0267599,872.26,871.03,0.77233684]
[1757258726780,1.0267599,872.27,871.04,1.527]
[1757258727580,1.0267599,872.28,871.07,0.77233684]
[1757258727782,1.0267599,872.29,871.07,0.77233684]
[1757258728378,1.0267599,872.28,871.08,0.77233684]
[1757258728681,1.0267599,872.29,871.08,0.77233684]
[1757258729077,0.004,872.5,871.08,0.77233684]
[1757258729078,1.0267599,872.28,871.08,0.77233684]
[1757258729480,1.0267599,872.26,871.1,0.77233684]
[1757258729681,0.004,872.5,871.09,0.77233684]
[1757258729682,1.0267599,872.27,871.09,0.77233684]
[1757258730280,1.0267599,872.27,871.1,0.77233684]
[1757258730480,1.0267599,872.25,871.12,0.77233684]
[1757258730682,1.0267599,872.25,871.11,0.77233684]
[1757258731384,1.0267599,872.23,871.14,0.77233684]
[1757258731682,1.0267599,872.24,871.13,0.77233684]
[1757258732279,1.0267599,872.24,871.13,0.76783011]
[1757258732483,1.0267599,872.21,871.16,0.76783011]
[1757258733381,1.0267599,872.2,871.17,0.76783011]
[1757258733881,1.0267599,872.21,871.16,0.76783011]
[1757258734585,1.0267599,872.2,871.17,0.76783011]
[1757258734784,1.5216007,872.39,871.17,0.76783011]
[1757258734785,1.0267599,872.21,871.17,0.76783011]
[1757258735182,1.0267599,872.19,871.16,0.76783011]
[1757258735383,1.0267599,872.18,871.17,0.76783011]
[1757258735683,1.0267599,872.19,871.17,0.76783011]
[1757258736386,1.0267599,872.18,871.17,0.76783011]
[1757258737481,1.0267599,872.15,871.15,0.76783011]
[1757258739486,1.0267599,872.14,871.16,0.76783011]
[1757258739692,1.0267599,872.15,871.16,0.76783011]
[1757258739891,1.0267599,872.14,871.16,0.76783011]
[1757258741289,1.0267599,872.13,871.16,0.76783011]